bitfinex-derivatives/quotes_SOLF0:USTF0_20250415
["timestamp","ask_amount","ask_price","bid_price","bid_amount"]
[1744732660542,0.05094356,129.48,129.46,0.05604894]
[1744732660943,0.05094356,129.48,129.46,7.78094894]
[1744732662246,0.05094356,129.48,129.46,0.05604894]
[1744732662543,7.77504356,129.48,129.46,0.05604894]
[1744732663048,7.7244,129.47,129.46,0.05604894]
[1744732663444,7.7265,129.44,129.41,589.26]
[1744732663639,7.7265,129.44,129.41,32.84]
[1744732664339,7.78542461,129.44,129.41,32.89403183]
[1744732664739,7.7268,129.43,129.41,32.89403183]
[1744732665239,0.05892461,129.44,129.41,32.89403183]
[1744732665444,7.7271,129.43,129.41,32.89403183]
[1744732665645,0.05892461,129.44,129.41,32.89403183]
[1744732665840,7.78542461,129.44,129.41,40.62193183]
[1744732666947,0.05892461,129.44,129.41,32.89403183]
[1744732667544,26.08286439,129.44,129.41,0.05403183]
[1744732667745,7.7273,129.42,129.41,0.05403183]
[1744732668842,7.7288,129.4,129.37,7.7299]
[1744732669047,26.02393978,129.42,129.35,588.98]
[1744732669547,2.1695,129.43,129.35,588.98]
[1744732669846,26.02393978,129.44,129.35,588.98]
[1744732670043,0.05242664,129.41,129.39,7.7291]
[1744732670251,26.02393978,129.4,129.32,37.0658]
[1744732670445,0.05774924,129.37,129.32,37.0658]
[1744732670749,7.7312,129.36,129.33,7.7322]
[1744732670954,0.05774924,129.37,129.32,32.8]
[1744732671950,7.7321,129.35,129.32,40.5332]
[1744732672151,0.05774924,129.37,129.32,32.8]
[1744732672446,7.7327,129.33,129.32,32.8]
[1744732672651,0.05675009,129.34,129.32,32.8]
[1744732673052,7.78905009,129.34,129.32,32.8]
[1744732673253,0.05675009,129.34,129.32,32.8]
[1744732673454,0.05675009,129.34,129.3,32.82]
[1744732673752,7.7335,129.32,129.3,32.82]
[1744732674245,7.733,129.33,129.3,40.5542]
[1744732676353,7.78915009,129.34,129.31,7.7339]
[1744732676652,0.05675009,129.34,129.3,32.82]
[1744732677151,0.05675009,129.34,129.32,7.7332]
[1744732678452,7.78885009,129.34,129.31,7.7337]
[1744732678653,0.05675009,129.34,129.3,32.82]
[1744732678852,0.05675009,129.34,129.32,7.7333]
[1744732679353,0.05675009,129.34,129.3,32.82]
[1744732679747,0.05675009,129.34,129.32,7.733]
[1744732679954,0.05675009,129.34,129.3,32.82]
[1744732680151,0.05675009,129.34,129.33,7.7327]
[1744732681955,0.05675009,129.34,129.3,32.82]
[1744732682653,0.05675009,129.34,129.31,7.7338]
[1744732682859,0.05675009,129.34,129.29,556.2]
[1744732683051,0.05675009,129.34,129.29,589.02]
[1744732683251,0.05675009,129.34,129.3,7.7342]
[1744732683451,0.05675009,129.34,129.29,589.02]
[1744732683760,7.7331,129.33,129.3,7.7341]
[1744732685762,26.08068987,129.34,129.29,32.82]
[1744732686857,7.7338,129.32,129.29,32.82]
[1744732687057,26.08068987,129.34,129.29,32.82]
[1744732687264,26.08068987,129.34,129.28,7.7353]
[1744732687452,7.7342,129.31,129.28,7.7353]
[1744732687657,7.78627022,129.31,129.28,7.7353]
[1744732688861,0.05207022,129.31,129.29,7.7349]
[1744732689563,7.78627022,129.31,129.28,7.7355]
[1744732690364,7.7345,129.3,129.28,7.7355]
[1744732690563,0.05207022,129.31,129.28,7.7355]
[1744732690863,7.78627022,129.31,129.27,32.84]
[1744732691162,7.78627022,129.31,129.28,7.7352]
[1744732691363,7.78627022,129.31,129.27,32.84]
[1744732691760,7.78627022,129.31,129.28,7.7354]
[1744732692463,0.05207022,129.31,129.29,7.735]
[1744732692664,0.05207022,129.31,129.27,32.84]
[1744732693372,26.02393978,129.38,129.27,32.84]
[1744732693373,28.13853978,129.38,129.27,58.86393978]
[1744732693766,7.7317,129.35,129.31,7.7334]
[1744732694072,7.7317,129.35,129.31,32.84]
[1744732694366,0.04958154,129.34,129.32,7.78697418]
[1744732694870,7.78178154,129.34,129.32,7.78697418]
[1744732695169,7.78178154,129.34,129.32,0.05377418]
[1744732696073,7.7327,129.33,129.32,0.05377418]
[1744732696272,26.07352132,129.34,129.28,32.78]
[1744732696470,7.7341,129.31,129.28,40.5153]
[1744732697172,7.7347,129.3,129.28,32.78]
[1744732697471,0.05003682,129.3,129.28,32.78]
[1744732698771,0.05003682,129.3,129.25,32.78]
[1744732698963,7.7356,129.29,129.25,32.78]
[1744732699172,7.7356,129.29,129.26,7.7366]
[1744732699471,7.7352,129.29,129.26,7.7366]
[1744732699672,7.7352,129.29,129.27,7.7363]
[1744732699866,0.05003682,129.3,129.25,32.78]
[1744732700166,7.78483682,129.3,129.27,7.7359]
[1744732700371,0.05003682,129.3,129.25,32.78]
[1744732700776,26.0739766,129.3,129.25,40.5172]
[1744732700972,26.0739766,129.3,129.25,32.78]
[1744732701473,0.05003682,129.3,129.25,32.78]
[1744732702174,7.78483682,129.3,129.27,7.736]
[1744732702374,7.78483682,129.3,129.25,32.78]
[1744732703370,0.05003682,129.3,129.29,7.7351]
[1744732703773,0.05003682,129.3,129.29,40.5351]
[1744732705575,0.05003682,129.3,129.29,32.8]
[1744732705978,7.78453682,129.3,129.26,32.8]
[1744732706180,7.78453682,129.3,129.27,7.736]
[1744732706583,0.05003682,129.3,129.26,32.8]
[1744732707180,0.05003682,129.3,129.29,7.7351]
[1744732710179,0.05003682,129.3,129.28,7.7354]
[1744732710379,0.05003682,129.3,129.26,32.8]
[1744732710573,0.05003682,129.3,129.27,7.7359]
[1744732710974,0.05003682,129.3,129.24,32.8]
[1744732711173,7.7354,129.29,129.24,32.8]
[1744732711879,7.7361,129.28,129.24,32.8]
[1744732712084,0.05567517,129.27,129.24,32.8]
[1744732712382,7.79237517,129.27,129.24,32.8]
[1744732712574,0.05567517,129.27,129.24,32.8]
[1744732712982,7.79237517,129.27,129.24,32.8]
[1744732713173,7.79237517,129.27,129.23,589.3]
[1744732713784,0.05567517,129.27,129.23,589.3]
[1744732714384,0.05567517,129.27,129.25,7.7372]
[1744732714979,7.79197517,129.27,129.25,7.7372]
[1744732715384,0.05567517,129.27,129.25,7.7372]
[1744732716875,0.05567517,129.27,129.23,589.3]
[1744732717081,7.79207517,129.27,129.23,589.3]
[1744732717281,0.05567517,129.27,129.23,589.3]
[1744732717482,0.05567517,129.27,129.26,7.7369]
[1744732719287,24.00988896,129.31,129.28,7.7353]
[1744732719487,24.00988896,129.31,129.27,32.8]
[1744732719888,24.00988896,129.31,129.29,7.7351]
[1744732720186,24.00988896,129.31,129.27,32.8]
[1744732720390,0.05098954,129.3,129.28,0.05461523]
[1744732720589,0.05098954,129.3,129.28,7.78991523]
[1744732721085,0.05098954,129.3,129.28,0.05461523]
[1744732721680,0.05098954,129.3,129.28,7.79031523]
[1744732721989,0.05098954,129.3,129.28,0.05461523]
[1744732722190,0.05098954,129.3,129.29,7.7351]
[1744732728490,16.27558896,129.36,129.31,7.7334]
[1744732728690,7.7324,129.34,129.31,32.74]
[1744732729192,7.7324,129.34,129.32,7.733]
[1744732729392,0.04866232,129.34,129.32,0.05752177]
[1744732729792,16.27558896,129.39,129.32,0.05752177]
[1744732730292,24.00508896,129.39,129.36,7.7305]
[1744732730490,16.27558896,129.43,129.35,32.74]
[1744732730700,16.27558896,129.45,129.37,16.27558896]
[1744732730891,0.05902768,129.4,129.39,7.7291]
[1744732731094,0.0585136,129.41,129.38,34.86147581]
[1744732731296,0.0585136,129.41,129.4,7.7285]
[1744732731698,0.0585136,129.41,129.38,34.86147581]
[1744732731893,16.33410256,129.41,129.38,0.05547581]
[1744732732092,16.27558896,129.39,129.32,34.806]
[1744732732292,16.27558896,129.36,129.32,34.806]
[1744732732596,16.27558896,129.36,129.33,7.7324]
[1744732732793,6.0726,129.4,129.32,34.806]
[1744732732993,16.27558896,129.41,129.32,51.08158896]
[1744732733299,0.04906685,129.37,129.35,0.04938544]
[1744732733497,0.04906685,129.37,129.36,40.4709]
[1744732734699,32.08667994,129.45,129.36,32.74]
[1744732734899,1.9936,129.45,129.36,34.7623]
[1744732735100,9.7194,129.45,129.37,2.0601]
[1744732735496,1.9936,129.45,129.42,7.7273]
[1744732735797,0.05890076,129.45,129.42,0.04979401]
[1744732736101,0.05890076,129.45,129.44,7.7262]
[1744732736798,25.99877994,129.51,129.43,2.1259]
[1744732737000,25.99877994,129.49,129.43,2.1259]
[1744732737399,25.99877994,129.51,129.43,2.1259]
[1744732737706,0.05351462,129.48,129.46,0.05720627]
[1744732738203,0.05351462,129.48,129.46,7.78210627]
[1744732739603,0.05351462,129.48,129.46,0.05720627]
[1744732740204,0.05351462,129.48,129.46,7.78190627]
[1744732740702,0.05351462,129.48,129.46,0.05720627]
[1744732740909,33.72317994,129.47,129.46,0.05720627]
[1744732741296,7.7244,129.47,129.46,0.05720627]
[1744732742404,7.7262,129.44,129.43,32.72]
[1744732742800,25.99877994,129.47,129.43,32.72]
[1744732743109,25.99877994,129.49,129.43,32.72]
[1744732743508,0.05836596,129.47,129.45,0.05473576]
[1744732743704,7.78306596,129.47,129.45,0.05473576]
[1744732744115,0.05836596,129.47,129.45,0.05473576]
[1744732744607,7.78306596,129.47,129.45,0.05473576]
[1744732746002,0.05836596,129.47,129.45,0.05473576]
[1744732747108,0.05836596,129.47,129.46,7.725]
[1744732748911,0.05836596,129.47,129.45,0.05473576]
[1744732749511,7.78306596,129.47,129.45,0.05473576]
[1744732749909,0.05836596,129.47,129.45,0.05473576]
[1744732750613,0.05836596,129.47,129.46,7.725]
[1744732751002,7.7217,129.52,129.48,7.7238]
[1744732751203,60.70857994,129.55,129.48,32.7]
[1744732751410,28.00857994,129.55,129.48,32.7]
[1744732751607,7.7208,129.53,129.5,7.7223]
[1744732751914,7.77126968,129.53,129.5,7.7770712]
[1744732752412,0.05046968,129.53,129.5,0.0547712]
[1744732752607,26.04924962,129.53,129.5,0.0547712]
[1744732752811,25.99877994,129.51,129.45,32.7]
[1744732753012,7.7239,129.48,129.45,40.4251]
[1744732753714,7.78108317,129.48,129.45,40.47575208]
[1744732754111,0.05718317,129.48,129.47,7.7244]
[1744732754311,25.99877994,129.54,129.45,32.75065208]
[1744732754507,25.99877994,129.54,129.45,32.7]
[1744732754712,7.7224,129.51,129.48,7.7235]
[1744732755217,7.7228,129.5,129.48,0.05772284]
[1744732755418,0.05269554,129.51,129.48,0.05772284]
[1744732755915,7.7226,129.5,129.48,0.05772284]
[1744732756914,7.7226,129.5,129.48,7.78152284]
[1744732757512,7.7226,129.5,129.48,0.05772284]
[1744732757717,0.05269554,129.51,129.48,0.05772284]
[1744732758118,7.77469554,129.51,129.49,7.7228]
[1744732758318,0.05269554,129.51,129.48,0.05772284]
[1744732759117,0.05269554,129.51,129.49,32.64]
[1744732759318,0.05269554,129.51,129.5,7.7226]
[1744732764519,7.7229,129.5,129.48,7.78142284]
[1744732765019,7.77499554,129.51,129.49,7.7231]
[1744732765221,7.77499554,129.51,129.48,0.05772284]
[1744732765716,7.77499554,129.51,129.48,7.78112284]
[1744732766020,7.7228,129.5,129.48,7.78112284]
[1744732766421,0.05269554,129.51,129.48,7.78112284]
[1744732766616,7.77519554,129.51,129.48,7.78112284]
[1744732766822,0.05269554,129.51,129.48,0.05772284]
[1744732767510,7.7211,129.53,129.5,7.722]
[1744732767814,15.57110939,129.54,129.46,34.7666]
[1744732768213,7.7217,129.52,129.49,7.7228]
[1744732768417,16.21981822,129.52,129.46,34.7666]
[1744732768613,0.04861193,129.5,129.48,0.05760794]
[1744732769126,0.04861193,129.5,129.49,7.7232]
[1744732773026,0.04861193,129.5,129.48,7.78110794]
[1744732773330,0.04861193,129.5,129.48,0.05760794]
[1744732773531,7.77141193,129.5,129.48,0.05760794]
[1744732773829,0.04861193,129.5,129.48,0.05760794]
[1744732774030,0.04861193,129.5,129.49,7.7232]
[1744732775825,7.7199,129.55,129.53,7.7206]
[1744732776033,16.21981822,129.56,129.51,32.64]
[1744732776528,7.7194,129.56,129.53,7.7205]
[1744732776933,7.77320642,129.56,129.53,7.77303827]
[1744732777429,7.7196,129.55,129.53,0.05253827]
[1744732777630,16.21981822,129.55,129.53,0.05253827]
[1744732778333,7.7202,129.54,129.53,0.05253827]
[1744732779132,16.27362464,129.56,129.53,0.05253827]
[1744732779833,23.99302464,129.56,129.54,7.7199]
[1744732780338,23.99302464,129.56,129.47,588.54]
[1744732780339,48.91362464,129.56,129.47,588.54]
[1744732780537,16.21981822,129.52,129.49,7.7231]
[1744732781337,0.05879133,129.52,129.49,0.05090011]
[1744732782536,0.05879133,129.52,129.51,7.722]
[1744732783235,18.23471822,129.58,129.55,7.7196]
[1744732783433,18.23471822,129.58,129.51,32.64]
[1744732783937,16.21981822,129.56,129.51,32.64]
[1744732784337,7.7716062,129.55,129.53,7.7205]
[1744732784936,0.0518062,129.55,129.53,7.7205]
[1744732785139,0.0518062,129.55,129.54,7.7202]
[1744732786135,18.21511822,129.61,129.52,0.05308138]
[1744732786335,18.21511822,129.61,129.52,18.20091822]
[1744732786538,16.21981822,129.59,129.52,1.9811]
[1744732786739,16.21981822,129.57,129.53,7.7207]
[1744732786935,16.21981822,129.57,129.51,32.64]
[1744732787135,0.05836819,129.55,129.54,7.7199]
[1744732787335,0.05836819,129.55,129.53,0.05150771]
[1744732788439,0.05836819,129.55,129.54,7.7202]
[1744732790641,16.21981822,129.6,129.57,7.7183]
[1744732790939,7.7169,129.6,129.57,7.7183]
[1744732791444,7.7169,129.6,129.58,7.7177]
[1744732791643,0.05068675,129.6,129.58,0.05089348]
[1744732792536,16.27050497,129.6,129.58,0.05089348]
[1744732793245,23.98760497,129.6,129.58,0.05089348]
[1744732794239,7.76778675,129.6,129.58,0.05089348]
[1744732794440,7.76778675,129.6,129.58,7.76849348]
[1744732794635,0.05068675,129.6,129.58,0.05089348]
[1744732795243,0.05068675,129.6,129.59,7.7172]
[1744732795439,0.05068675,129.6,129.58,0.05089348]
[1744732795745,16.27050497,129.6,129.58,0.05089348]
[1744732795939,7.7172,129.59,129.58,0.05089348]
[1744732796335,16.27050497,129.6,129.58,0.05089348]
[1744732796647,0.05068675,129.6,129.58,0.05089348]
[1744732796839,0.05068675,129.6,129.58,7.76839348]
[1744732797040,0.05068675,129.6,129.58,0.05089348]
[1744732797344,0.05068675,129.6,129.58,7.76829348]
[1744732797645,7.76738675,129.6,129.58,7.76829348]
[1744732797841,0.05068675,129.6,129.58,0.05089348]
[1744732798144,7.7172,129.59,129.58,0.05089348]
[1744732798446,0.05068675,129.6,129.58,0.05089348]
[1744732798945,7.76758675,129.6,129.58,7.76839348]
[1744732799146,0.05068675,129.6,129.58,0.05089348]
[1744732800249,0.05068675,129.6,129.58,7.76839348]
[1744732800455,0.05068675,129.6,129.58,0.05089348]
[1744732800944,0.05068675,129.6,129.58,7.76839348]
[1744732801543,0.05068675,129.6,129.59,7.7172]
[1744732801849,0.05068675,129.6,129.58,0.05089348]
[1744732802042,7.76728675,129.6,129.58,7.76839348]
[1744732802244,0.05068675,129.6,129.58,7.76839348]
[1744732802443,0.05068675,129.6,129.58,0.05089348]
[1744732804148,0.05068675,129.6,129.59,7.7172]
[1744732805147,0.05068675,129.6,129.58,7.76839348]
[1744732805444,0.05068675,129.6,129.58,0.05089348]
[1744732805445,7.76738675,129.6,129.58,0.05089348]
[1744732805645,0.05068675,129.6,129.58,0.05089348]
[1744732806052,7.7172,129.59,129.58,0.05089348]
[1744732806348,0.05068675,129.6,129.55,32.56]
[1744732807248,0.05068675,129.6,129.59,7.7172]
[1744732807447,0.05068675,129.6,129.59,40.2772]
[1744732808548,0.05068675,129.6,129.56,32.6128298]
[1744732809250,7.7182,129.58,129.56,32.6128298]
[1744732809944,7.7182,129.58,129.56,40.3317298]
[1744732810151,7.7184,129.57,129.56,32.6128298]
[1744732810448,1.9953,129.59,129.56,7.7715298]
[1744732810649,0.05068675,129.6,129.56,7.7715298]
[1744732810847,7.7173,129.59,129.56,7.7715298]
[1744732811251,7.76758675,129.6,129.57,7.718]
[1744732811550,0.05068675,129.6,129.57,32.56]
[1744732811945,2.0869,129.65,129.57,32.56]
[1744732812250,2.0869,129.65,129.58,4.0454]
[1744732812446,32.56,129.69,129.61,7.7156]
[1744732812643,2.0836,129.68,129.61,40.2756]
[1744732813150,0.05933078,129.66,129.63,0.05478173]
[1744732813553,7.7146,129.64,129.63,0.05478173]
[1744732815655,9.7311,129.65,129.63,0.05478173]
[1744732815856,2.0173,129.65,129.63,0.05478173]
[1744732817154,2.0173,129.65,129.56,588.12]
[1744732817751,2.0173,129.65,129.6,7.7166]
[1744732817953,2.0173,129.65,129.56,588.12]
[1744732818153,0.05189711,129.62,129.59,0.05906497]
[1744732818755,0.05189711,129.62,129.54,7.7199]
[1744732819057,7.7211,129.53,129.47,32.52]
[1744732819245,7.7211,129.53,129.48,32.52]
[1744732819451,7.7211,129.53,129.49,32.52]
[1744732819752,0.05183823,129.52,129.5,0.05012447]
[1744732819957,0.05183823,129.52,129.45,32.52]
[1744732819958,32.52,129.58,129.47,7.724]
[1744732820259,7.722,129.51,129.5,0.05888576]
[1744732820452,0.0523406,129.52,129.49,0.0505163]
[1744732820651,7.7229,129.5,129.49,0.0505163]
[1744732821159,0.0523406,129.52,129.49,0.0505163]
[1744732821357,0.0523406,129.52,129.49,32.5705163]
[1744732822451,0.0523406,129.52,129.49,0.0505163]
[1744732823458,7.7226,129.5,129.49,0.0505163]
[1744732824052,0.0523406,129.52,129.43,4.034]
[1744732824053,7.7244,129.47,129.43,4.034]
[1744732824258,7.7244,129.47,129.43,36.554]
[1744732824454,7.7244,129.47,129.43,32.52]
[1744732824753,7.7244,129.47,129.44,7.7257]
[1744732825160,7.77936979,129.47,129.44,7.77559508]
[1744732825658,0.05496979,129.47,129.44,0.04989508]
[1744732826362,27.9824586,129.51,129.44,0.04989508]
[1744732826861,7.7228,129.5,129.44,0.04989508]
[1744732827256,0.05108956,129.48,129.44,0.04989508]
[1744732828358,25.9683586,129.47,129.44,0.04989508]
[1744732828961,0.05108956,129.48,129.45,7.7251]
[1744732829161,0.05108956,129.48,129.44,0.04989508]
[1744732829461,7.77538956,129.48,129.45,7.7252]
[1744732829963,0.05108956,129.48,129.44,0.04989508]
[1744732830662,0.05108956,129.48,129.46,7.7248]
[1744732831260,0.05108956,129.48,129.44,0.04989508]
[1744732831859,7.7254,129.46,129.44,0.04989508]
[1744732832568,7.7256,129.45,129.44,0.04989508]
[1744732832765,4.1503,129.47,129.4,32.54]
[1744732833067,7.7264,129.44,129.4,40.268]
[1744732833367,4.1503,129.47,129.4,32.54]
[1744732833567,7.725,129.46,129.43,7.7262]
[1744732833768,7.77585948,129.46,129.44,0.05012891]
[1744732834061,7.7256,129.45,129.44,0.05012891]
[1744732834265,0.05085948,129.46,129.44,0.05012891]
[1744732834666,7.7256,129.45,129.44,0.05012891]
[1744732835863,7.77605948,129.46,129.44,0.05012891]
[1744732836069,0.05085948,129.46,129.44,0.05012891]
[1744732836662,7.7256,129.45,129.44,0.05012891]
[1744732837161,7.7276,129.42,129.4,32.54]
[1744732837569,58.5083586,129.48,129.4,32.54]
[1744732837769,7.7276,129.42,129.4,32.54]
[1744732838271,7.78287736,129.42,129.4,32.59818105]
[1744732838669,0.05527736,129.42,129.4,40.32658105]
[1744732839266,7.78307736,129.42,129.4,32.59818105]
[1744732839677,0.05527736,129.42,129.4,32.59818105]
[1744732839975,7.78267736,129.42,129.4,40.32648105]
[1744732840175,0.05527736,129.42,129.4,32.59818105]
[1744732840480,0.05527736,129.42,129.4,40.32648105]
[1744732841077,0.05527736,129.42,129.41,7.7279]
[1744732843279,7.7253,129.46,129.4,32.59818105]
[1744732844179,0.05572812,129.44,129.4,32.59818105]
[1744732844380,0.05572812,129.44,129.41,0.05185821]
[1744732844778,2.0488,129.5,129.46,7.7247]
[1744732845277,7.7235,129.49,129.46,7.7247]
[1744732845477,2.0488,129.5,129.46,7.7247]
[1744732845775,0.05501823,129.49,129.47,7.77917537]
[1744732845974,0.05501823,129.49,129.47,0.05497537]
[1744732846382,0.05501823,129.49,129.48,7.7238]
[1744732846681,34.7417,129.54,129.47,0.05497537]
[1744732846871,7.7217,129.52,129.49,7.7229]
[1744732847278,34.7417,129.54,129.49,7.7229]
[1744732847684,0.05143461,129.53,129.5,0.05364164]
[1744732847885,0.05143461,129.53,129.5,7.77614164]
[1744732848078,7.7217,129.52,129.5,0.05364164]
[1744732848481,0.05143461,129.53,129.5,0.05364164]
[1744732849286,7.722,129.51,129.5,0.05364164]
[1744732850378,0.05143461,129.53,129.5,0.05364164]
[1744732850984,7.7214,129.52,129.5,0.05364164]
[1744732851181,0.05143461,129.53,129.5,0.05364164]
[1744732851981,7.722,129.51,129.5,0.05364164]
[1744732852282,25.9683586,129.51,129.43,2.1054]
[1744732852481,7.7237,129.49,129.46,7.7247]
[1744732852881,25.9683586,129.51,129.46,7.7247]
[1744732853081,7.7238,129.48,129.47,0.05703402]
[1744732853484,7.7235,129.49,129.47,7.78133402]
[1744732854088,7.77857171,129.5,129.47,7.78133402]
[1744732854284,0.05577171,129.5,129.47,0.05703402]
[1744732854681,7.7211,129.53,129.5,7.7221]
[1744732854887,4.0812,129.59,129.44,27.9940586]
[1744732854888,4.0812,129.59,129.46,25.9683586]
[1744732855091,25.9683586,129.62,129.5,25.9683586]
[1744732855287,7.717,129.6,129.51,4.0271]
[1744732855486,25.9683586,129.62,129.51,4.0271]
[1744732855786,0.04912998,129.58,129.55,0.05115126]
[1744732856284,7.7157,129.62,129.58,7.7175]
[1744732856588,2.0918,129.63,129.52,25.9683586]
[1744732856788,7.7168,129.6,129.56,7.7186]
[1744732856984,7.7168,129.6,129.52,25.9683586]
[1744732857282,0.05497573,129.57,129.56,7.7189]
[1744732857684,0.05497573,129.57,129.55,0.05781173]
[1744732857882,0.05497573,129.57,129.55,7.77711173]
[1744732859693,0.05497573,129.57,129.56,7.719]
[1744732859891,0.05497573,129.57,129.55,0.05781173]
[1744732860291,0.05497573,129.57,129.55,7.77691173]
[1744732861099,0.05497573,129.57,129.56,7.719]
[1744732861591,0.05497573,129.57,129.56,2.1005]
[1744732861794,25.9683586,129.64,129.56,2.1005]
[1744732862285,7.7158,129.62,129.58,7.7175]
[1744732862491,25.9683586,129.64,129.56,2.1005]
[1744732862886,7.7166,129.6,129.59,0.05493509]
[1744732863192,0.05450397,129.61,129.58,0.05570404]
[1744732863393,0.05450397,129.61,129.51,4.0271]
[1744732863394,25.9683586,129.6,129.51,4.0271]
[1744732863594,25.9683586,129.56,129.51,2.0067]
[1744732863893,25.9683586,129.52,129.45,2.003]
[1744732864390,361.1421,129.59,129.47,0.05212261]
[1744732864391,7.7238,129.48,129.47,0.05212261]
[1744732864597,0.05656692,129.49,129.46,0.05174896]
[1744732865090,7.7241,129.48,129.46,0.05174896]
[1744732865289,0.05656692,129.49,129.46,0.05174896]
[1744732865593,7.7238,129.48,129.46,0.05174896]
[1744732866594,7.7244,129.47,129.46,0.05174896]
[1744732867493,33.6923586,129.48,129.46,0.05174896]
[1744732868092,7.724,129.48,129.46,0.05174896]
[1744732868393,7.7244,129.47,129.46,0.05174896]
[1744732869093,7.7244,129.47,129.4,2.1813]
[1744732869094,25.9683586,129.48,129.44,7.7258]
[1744732869496,25.9683586,129.48,129.45,7.7252]
[1744732869798,25.9683586,129.5,129.45,7.7252]
[1744732869994,7.77613547,129.49,129.46,0.05746022]
[1744732870600,7.7239,129.48,129.46,0.05746022]
[1744732871694,7.77613547,129.49,129.46,0.05746022]
[1744732872197,7.7239,129.48,129.46,0.05746022]
[1744732872391,0.05263547,129.49,129.46,0.05746022]
[1744732872698,7.7239,129.48,129.46,0.05746022]
[1744732872898,0.05263547,129.49,129.46,0.05746022]
[1744732873096,25.9683586,129.48,129.46,0.05746022]
[1744732873595,7.7244,129.47,129.46,0.05746022]
[1744732873800,25.9683586,129.48,129.4,2.1813]
[1744732874201,7.7265,129.44,129.4,7.7282]
[1744732874401,7.7265,129.44,129.39,1.972]
[1744732874695,7.78108102,129.43,129.4,0.05167827]
[1744732875203,0.05428102,129.43,129.4,0.05167827]
[1744732875401,0.05428102,129.43,129.42,7.7273]
[1744732875603,25.9683586,129.48,129.4,0.05167827]
[1744732875799,25.9683586,129.52,129.4,25.9683586]
[1744732876005,7.7211,129.53,129.49,7.7228]
[1744732876502,7.7216,129.52,129.49,7.7228]
[1744732876804,7.77449225,129.52,129.49,7.78061624]
[1744732877100,0.05289225,129.52,129.49,0.05781624]
[1744732877309,25.9683586,129.62,129.51,25.9683586]
[1744732877501,41.17951388,129.64,129.53,25.9683586]
[1744732877700,37.6979586,129.64,129.54,2.1309]
[1744732877900,25.9683586,129.58,129.46,46.36]
[1744732878104,25.9683586,129.55,129.46,15.4493]
[1744732878401,0.0569772,129.52,129.5,7.7222]
[1744732878601,0.0569772,129.52,129.49,0.05226875]
[1744732879101,0.0569772,129.52,129.51,7.722]
[1744732879706,0.0569772,129.52,129.49,0.05226875]
[1744732879711,25.9683586,129.6,129.54,7.7198]
[1744732879904,25.9683586,129.6,129.5,2.0855]
[1744732880110,25.9683586,129.6,129.5,28.0538586]
[1744732880409,25.9683586,129.6,129.56,7.7187]
[1744732880603,33.6850586,129.6,129.56,7.7187]
[1744732880804,0.05715326,129.59,129.57,0.05803335]
[1744732881109,7.7178,129.58,129.57,0.05803335]
[1744732881311,0.05715326,129.59,129.5,2.0855]
[1744732881504,25.9683586,129.6,129.5,2.0855]
[1744732881705,7.7192,129.56,129.52,7.7211]
[1744732881906,25.9683586,129.58,129.5,2.0855]
[1744732882207,25.9683586,129.58,129.53,7.7205]
[1744732882208,7.7187,129.57,129.53,7.7205]
[1744732882411,0.0531404,129.56,129.54,0.0553174]
[1744732883410,25.9683586,129.61,129.54,0.0553174]
[1744732883411,25.9683586,129.66,129.54,7.7753174]
[1744732883603,25.9683586,129.63,129.55,2.1843]
[1744732883803,25.9683586,129.66,129.55,28.1526586]
[1744732884005,25.9683586,129.67,129.55,28.1526586]
[1744732884406,0.05677648,129.62,129.6,0.05273034]
[1744732884605,0.05446571,129.62,129.6,0.05273034]
[1744732884803,0.05446571,129.62,129.61,7.716]
[1744732885107,0.05446571,129.62,129.6,0.05273034]
[1744732885503,0.05446571,129.62,129.61,7.716]
[1744732885701,0.05446571,129.62,129.6,0.05273034]
[1744732886211,26.02282431,129.62,129.5,25.9683586]
[1744732886410,25.9683586,129.62,129.5,25.9683586]
[1744732886605,33.6842586,129.62,129.57,7.718]
[1744732886810,25.9683586,129.62,129.57,7.718]
[1744732887111,25.9683586,129.6,129.58,0.05886514]
[1744732887809,25.9683586,129.6,129.48,27.9656586]
[1744732888403,25.9683586,129.6,129.49,2.0062]
[1744732888714,5.99e-06,129.56,129.53,0.05297884]
[1744732889311,5.99e-06,129.56,129.55,7.7196]
[1744732889708,5.99e-06,129.56,129.55,15.4396]